lending/lending_fUSD_20251106
["ID","MTS","AMOUNT","RATE_DAILY","PERIOD"]
[393278259,1762422637612,-150.0,0.00016173,2]
[393278260,1762422637622,-500.0,0.00016173,2]
[393278261,1762422637632,-150.0,0.00016173,2]
[393278262,1762422637642,-300123.18377064,0.0001619,2]
[393278263,1762422637652,-1000.0,0.0001619,2]
[393278264,1762422637662,-58267.41689936,0.00016255,2]
[393278265,1762422637671,-516.7694007,0.00016273,2]
[393278266,1762422637681,-500.0,0.00016273,2]
[393278267,1762422637691,-504.73279275,0.00016273,2]
[393278268,1762422637702,-500.0,0.00016273,2]
[393278269,1762422637711,-500.0,0.00016273,2]
[393278270,1762422637721,-500.0,0.00016273,2]
[393278271,1762422637731,-500.0,0.00016273,2]
[393278272,1762422637740,-500.0,0.00016273,2]
[393278273,1762422637750,-621.31673857,0.00016273,2]
[393278274,1762422637760,-500.0,0.00016273,2]
[393278275,1762422637770,-500.0,0.00016273,2]
[393278276,1762422637780,-500.0,0.00016273,2]
[393278277,1762422637789,-290.90535112,0.00016273,2]
[393278278,1762422637800,-500.0,0.00016273,2]
[393278280,1762422637809,-500.0,0.00016273,2]
[393278282,1762422637818,-504.69553816,0.00016273,2]
[393278284,1762422637828,-501.59027207,0.00016273,2]
[393278286,1762422637839,-349.30178506,0.00016273,2]
[393278288,1762422637848,-500.0,0.00016273,2]
[393278290,1762422637858,-500.0,0.00016273,2]
[393278292,1762422637867,-1555.29425991,0.00016291,2]
[393278294,1762422637876,-10543.24405439,0.00016291,2]
[393278296,1762422637886,-2053.83,0.00016299,2]
[393278298,1762422637895,-2053.83,0.00016299,2]
[393278299,1762422637905,-500.0,0.00016299,2]
[393278300,1762422637914,-500.0,0.00016299,2]
[393278301,1762422637923,-500.0,0.00016299,2]
[393278302,1762422637933,-500.0,0.00016299,2]
[393278303,1762422637943,-500.0,0.00016299,2]
[393278304,1762422637957,-500.0,0.00016299,2]
[393278305,1762422637966,-400.36653205,0.00016299,2]
[393278306,1762422637976,-500.0,0.00016299,2]
[393278307,1762422637985,-307.45218061,0.00016299,2]
[393278308,1762422637995,-150.0,0.0001631,2]
[393278309,1762422638004,-154.15552868,0.0001631,2]
[393278310,1762422638014,-500.0,0.0001631,2]
[393278311,1762422638023,-150.0,0.0001631,2]
[393278312,1762422638033,-500.0,0.0001631,2]
[393278313,1762422638043,-281.02619732,0.00016349,2]
[393278314,1762422638053,-150.0,0.0001639,2]
[393278315,1762422638063,-150.0,0.0001639,2]
[393278316,1762422638072,-500.0,0.0001639,2]
[393278317,1762422638081,-500.0,0.0001639,2]
[393278318,1762422638092,-500.0,0.0001639,2]
[393278319,1762422638102,-500.0,0.0001639,2]
[393278320,1762422638112,-500.0,0.0001639,2]
[393278321,1762422638121,-150.0,0.0001639,2]
[393278322,1762422638131,-500.0,0.0001639,2]
[393278323,1762422638140,-500.0,0.0001639,2]
[393278324,1762422638153,-500.0,0.0001639,2]
[393278325,1762422638163,-500.0,0.0001639,2]
[393278326,1762422638173,-408.3599179,0.0001639,2]
[393278327,1762422638183,-500.0,0.0001639,2]
[393278328,1762422638193,-300.0,0.0001639,2]
[393278329,1762422638202,-152.08698658,0.0001639,2]
[393278330,1762422638212,-500.0,0.0001639,2]
[393278331,1762422638221,-152.54268606,0.0001639,2]
[393278332,1762422638231,-152.00625849,0.0001639,2]
[393278333,1762422638240,-150.0,0.0001639,2]
[393278334,1762422638250,-202.37031601,0.0001639,2]
[393278335,1762422638260,-150.0,0.0001639,2]
[393278336,1762422638270,-150.0,0.0001639,2]
[393278337,1762422638280,-599.0,0.0001639,2]
[393278338,1762422638289,-500.0,0.0001639,2]
[393278339,1762422638300,-150.0,0.0001639,2]
[393278340,1762422638310,-500.0,0.0001639,2]
[393278341,1762422638319,-471.21,0.00016412,2]
[393278342,1762422638330,-2891.65455657,0.00016434,2]
[393278343,1762422638343,-500.0,0.00016438,2]
[393278344,1762422638353,-500.0,0.00016438,2]
[393278345,1762422638363,-500.0,0.00016438,2]
[393278346,1762422638373,-500.0,0.00016438,2]
[393278347,1762422638383,-344.69551285,0.00016438,2]
[393278348,1762422638393,-500.0,0.00016438,2]
[393278349,1762422638403,-500.0,0.00016438,2]
[393278350,1762422638413,-150.0,0.00016438,2]
[393278351,1762422638423,-2103.71,0.00016438,2]
[393278352,1762422638432,-501.13567703,0.00016438,2]
[393278353,1762422638442,-163.35,0.0001644,2]
[393278354,1762422638452,-150.0,0.00016447,2]
[393278355,1762422638462,-392.08320953,0.00016447,2]
[393278356,1762422638473,-213.05879372,0.00016447,2]
[393278357,1762422638482,-500.0,0.00016447,2]
[393278358,1762422638491,-1555.29425991,0.00016492,2]
[393278359,1762422638501,-10543.24405439,0.00016492,2]
[393278360,1762422638511,-150.0,0.00016527,2]
[393278361,1762422638525,-150.0,0.00016527,2]
[393278362,1762422638535,-500.0,0.00016527,2]
[393278363,1762422638548,-500.0,0.00016527,2]
[393278364,1762422638559,-500.0,0.00016527,2]
[393278365,1762422638568,-500.0,0.00016527,2]
[393278366,1762422638579,-505.03214734,0.00016527,2]
[393278367,1762422638590,-150.0,0.00016527,2]
[393278368,1762422638599,-500.0,0.00016527,2]
[393278369,1762422638610,-300.0,0.00016527,2]
[393278370,1762422638620,-500.0,0.00016527,2]
[393278371,1762422638629,-150.0,0.00016527,2]
[393278372,1762422638639,-150.0,0.00016527,2]
[393278373,1762422638649,-150.0,0.00016527,2]
[393278374,1762422638659,-599.0,0.00016527,2]
[393278375,1762422638669,-516.33548393,0.00016527,2]
[393278376,1762422638679,-500.0,0.00016527,2]
[393278377,1762422638689,-150.0,0.00016575,2]
[393278378,1762422638699,-150.0,0.00016584,2]
[393278379,1762422638709,-500.0,0.00016584,2]
[393278380,1762422638719,-281.02619732,0.00016607,2]
[393278381,1762422638729,-300.0,0.0001661,2]
[393278382,1762422638741,-283.7415811,0.0001661,2]
[393278383,1762422638751,-300.0,0.0001661,2]
[393278384,1762422638761,-300.0,0.0001661,2]
[393278385,1762422638771,-300.0,0.0001661,2]
[393278386,1762422638781,-300.0,0.0001661,2]
[393278387,1762422638791,-2500.0,0.0001661,2]
[393278388,1762422638801,-250.0,0.0001661,2]
[393278389,1762422638811,-300.0,0.00016617,2]
[393278390,1762422638820,-300.0,0.00016617,2]
[393278391,1762422638830,-331.15287038,0.00016633,2]
[393278392,1762422638840,-150.0,0.00016664,2]
[393278393,1762422638849,-150.0,0.00016664,2]
[393278394,1762422638859,-500.0,0.00016664,2]
[393278395,1762422638869,-500.0,0.00016664,2]
[393278396,1762422638879,-500.0,0.00016664,2]
[393278397,1762422638889,-251.64103016,0.00016664,2]
[393278398,1762422638899,-150.0,0.00016664,2]
[393278399,1762422638909,-500.0,0.00016664,2]
[393278400,1762422638919,-300.0,0.00016664,2]
[393278401,1762422638929,-500.0,0.00016664,2]
[393278402,1762422638941,-150.0,0.00016664,2]
[393278403,1762422638952,-150.0,0.00016664,2]
[393278404,1762422638961,-150.0,0.00016664,2]
[393278405,1762422638972,-599.0,0.00016664,2]
[393278406,1762422638982,-500.0,0.00016664,2]
[393278407,1762422638991,-195.0,0.00016667,2]
[393278408,1762422639001,-238.10507591,0.00016667,2]
[393278409,1762422639011,-200.0,0.00016667,2]
[393278410,1762422639021,-200.0,0.00016667,2]
[393278411,1762422639031,-200.0,0.00016667,2]
[393278412,1762422639041,-201.07254976,0.00016667,2]
[393278413,1762422639051,-300.0,0.00016692,2]
[393278414,1762422639061,-1555.29425991,0.00016693,2]
[393278415,1762422639070,-10543.24405439,0.00016693,2]
[393278416,1762422639081,-698.56,0.00016712,2]
[393278417,1762422639090,-1680.0,0.00016714,2]
[393278418,1762422639101,-1000.0,0.00016721,2]
[393278419,1762422639111,-520.11501514,0.00016721,2]
[393278420,1762422639121,-1000.0,0.00016721,2]
[393278421,1762422639131,-1025.42297104,0.00016721,2]
[393278422,1762422639140,-1000.0,0.00016721,2]
[393278423,1762422639151,-1000.0,0.00016721,2]
[393278424,1762422639160,-1000.0,0.00016721,2]
[393278425,1762422639170,-1000.0,0.00016721,2]
[393278426,1762422639179,-150.0,0.00016721,2]
[393278427,1762422639189,-328.38259742,0.00016721,2]
[393278428,1762422639200,-228.39525195,0.00016801,2]
[393278429,1762422639209,-150.0,0.00016801,2]
[393278430,1762422639219,-500.0,0.00016801,2]
[393278431,1762422639229,-500.0,0.00016801,2]
[393278432,1762422639238,-500.0,0.00016801,2]
[393278433,1762422639248,-200.84185402,0.00016801,2]
[393278434,1762422639257,-500.0,0.00016801,2]
[393278435,1762422639267,-300.0,0.00016801,2]
[393278436,1762422639276,-500.0,0.00016801,2]
[393278437,1762422639286,-150.0,0.00016801,2]
[393278438,1762422639297,-150.0,0.00016801,2]
[393278439,1762422639307,-200.0,0.00016801,2]
[393278440,1762422639316,-599.0,0.00016801,2]
[393278441,1762422639338,-500.0,0.00016801,2]
[393278442,1762422639348,-2053.83,0.0001682,2]
[393278443,1762422639358,-500.0,0.0001682,2]
[393278444,1762422639367,-574.14159547,0.0001682,2]
[393278445,1762422639377,-500.0,0.0001682,2]
[393278446,1762422639387,-1000.0,0.00016821,2]
[393278447,1762422639396,-1000.0,0.00016821,2]
[393278448,1762422639406,-578.06406639,0.00016821,2]
[393278449,1762422639416,-1000.0,0.00016821,2]
[393278450,1762422639425,-1000.0,0.00016821,2]
[393278451,1762422639434,-182.8775756,0.00016821,2]
[393278452,1762422639444,-1000.0,0.00016821,2]
[393278453,1762422639454,-1000.70281537,0.00016821,2]
[393278454,1762422639464,-352.20603691,0.00016821,2]
[393278455,1762422639473,-1000.0,0.00016821,2]
[393278456,1762422639483,-1000.0,0.00016821,2]
[393278457,1762422639493,-1000.0,0.00016821,2]
[393278458,1762422639502,-1089.35,0.00016822,2]
[393278459,1762422639512,-161.37025384,0.00016858,2]
[393278460,1762422639525,-281.02619732,0.00016866,2]
[393278461,1762422639535,-420.0,0.00016881,2]
[393278462,1762422639548,-1555.29425991,0.00016894,2]
[393278463,1762422639559,-10543.24405439,0.00016894,2]
[393278464,1762422639569,-200.0,0.000169,6]
[393278465,1762422639580,-150.0,0.00016938,2]
[393278466,1762422639590,-500.0,0.00016938,2]
[393278467,1762422639603,-500.0,0.00016938,2]
[393278468,1762422639613,-500.0,0.00016938,2]
[393278469,1762422639623,-450.0,0.00016938,2]
[393278470,1762422639633,-300.0,0.00016938,2]
[393278472,1762422639644,-500.0,0.00016938,2]
[393278474,1762422639655,-214.45499352,0.00016938,2]
[393278475,1762422639666,-150.0,0.00016938,2]
[393278476,1762422639676,-599.0,0.00016938,2]
[393278477,1762422639686,-500.0,0.00016938,2]
[393278478,1762422639701,-1000.0,0.00016958,2]
[393278479,1762422639711,-2326.0,0.00016986,2]
[393278480,1762422639722,-2000.0,0.00017,2]
[393278481,1762422639732,-500.0,0.00017,6]
[393278482,1762422639742,-2053.83,0.00017005,2]
[393278483,1762422639751,-500.0,0.00017005,2]
[393278484,1762422639761,-523.43595198,0.00017005,2]
[393278485,1762422639771,-358.79,0.00017029,2]
[393278486,1762422639781,-316.47,0.00017035,2]
[393278487,1762422639790,-200.54651287,0.00017075,2]
[393278488,1762422639800,-500.0,0.00017075,2]
[393278489,1762422639809,-500.0,0.00017075,2]
[393278490,1762422639819,-500.0,0.00017075,2]
[393278491,1762422639828,-150.0,0.00017075,2]
[393278492,1762422639838,-500.0,0.00017075,2]
[393278493,1762422639848,-599.0,0.00017075,2]
[393278494,1762422639858,-500.0,0.00017075,2]
[393278495,1762422639868,-1555.29425991,0.00017096,2]
[393278496,1762422639877,-10543.24405439,0.00017096,2]
[393278497,1762422639890,-800.0,0.000171,6]
[393278498,1762422639899,-358.8,0.00017166,2]
[393278500,1762422639908,-316.47,0.00017172,2]
[393278502,1762422639918,-237.45497966,0.00017185,2]
[393278503,1762422639928,-1100.0,0.000172,6]
[393278504,1762422639937,-500.0,0.00017212,2]
[393278505,1762422639946,-500.0,0.00017212,2]
[393278506,1762422639957,-500.0,0.00017212,2]
[393278507,1762422639966,-500.0,0.00017212,2]
[393278509,1762422639976,-599.0,0.00017212,2]
[393278511,1762422639985,-500.0,0.00017212,2]
[393278513,1762422639995,-935.0,0.00017215,2]
[393278515,1762422640005,-1500.0,0.00017268,2]
[393278517,1762422640015,-1500.0,0.00017268,2]
[393278519,1762422640025,-1500.0,0.00017268,2]
[393278521,1762422640034,-1500.0,0.00017268,2]
[393278523,1762422640043,-627.93010433,0.00017268,2]
[393278525,1762422640052,-500.0,0.00017268,2]
[393278527,1762422640062,-1555.29425991,0.00017297,2]
[393278529,1762422640071,-10543.24405439,0.00017297,2]
[393278533,1762422640080,-1400.0,0.000173,6]
[393278536,1762422640093,-316.47,0.00017309,2]
[393278539,1762422640103,-500.0,0.00017349,2]
[393278541,1762422640112,-599.0,0.00017349,2]
[393278543,1762422640122,-500.0,0.00017349,2]
[393278545,1762422640131,-1169.62774866,0.00017365,7]
[393278548,1762422640140,-1500.0,0.00017368,2]
[393278551,1762422640149,-1503.46009537,0.00017368,2]
[393278552,1762422640158,-1500.0,0.00017368,2]
[393278553,1762422640167,-1500.0,0.00017368,2]
[393278554,1762422640177,-1500.0,0.00017368,2]
[393278555,1762422640186,-1500.0,0.00017368,2]
[393278556,1762422640195,-1500.0,0.00017368,2]
[393278557,1762422640206,-1500.0,0.00017368,2]
[393278558,1762422640215,-169.04,0.00017397,2]
[393278559,1762422640224,-169.04,0.00017397,2]
[393278560,1762422640233,-169.04,0.00017397,2]
[393278561,1762422640243,-169.04,0.00017397,2]
[393278562,1762422640252,-169.04,0.00017397,2]
[393278563,1762422640262,-168.77,0.00017397,2]
[393278564,1762422640271,-1205.44,0.00017397,2]
[393278565,1762422640280,-1205.44,0.00017397,2]
[393278566,1762422640290,-1205.44,0.00017397,2]
[393278567,1762422640302,-1205.44,0.00017397,2]
[393278568,1762422640311,-1205.44,0.00017397,2]
[393278569,1762422640321,-1331.95,0.00017397,2]
[393278570,1762422640331,-1205.44,0.00017397,2]
[393278571,1762422640340,-1205.44,0.00017397,2]
[393278572,1762422640349,-1205.44,0.00017397,2]
[393278573,1762422640358,-1205.44,0.00017397,2]
[393278574,1762422640368,-1205.44,0.00017397,2]
[393278575,1762422640378,-1205.44,0.00017397,2]
[393278576,1762422640388,-1205.44,0.00017397,2]
[393278577,1762422640397,-1205.44,0.00017397,2]
[393278578,1762422640406,-213.2608074,0.00017398,2]
[393278579,1762422640416,-200.0,0.000174,6]
[393278580,1762422640425,-162.64913491,0.00017457,2]
[393278581,1762422640434,-500.0,0.00017486,2]
[393278582,1762422640445,-599.0,0.00017486,2]
[393278583,1762422640455,-500.0,0.00017486,2]
[393278584,1762422640464,-1555.29425991,0.00017498,2]
[393278585,1762422640474,-10543.24405439,0.00017498,2]
[393278586,1762422640486,-200.0,0.000175,6]
[393278587,1762422640495,-477.87911524,0.00017513,2]
[393278588,1762422640504,-5167.0,0.00017542,2]
[393278589,1762422640515,-2744.9989,0.00017543,2]
[393278590,1762422640526,-549.09,0.00017544,2]
[393278591,1762422640535,-549.09,0.00017544,2]
[393278592,1762422640545,-549.09,0.00017544,2]
[393278593,1762422640554,-1098.18,0.00017544,2]
[393278594,1762422640565,-549.09,0.00017544,2]
[393278595,1762422640575,-549.09,0.00017544,2]
[393278596,1762422640584,-549.09,0.00017544,2]
[393278597,1762422640595,-5167.0,0.00017547,2]
[393278598,1762422640605,-207.91123044,0.00017549,2]
[393278599,1762422640614,-5167.0,0.00017555,2]
[393278600,1762422640623,-200.0,0.000176,6]
[393278601,1762422640632,-608.492,0.00017603,2]
[393278602,1762422640642,-574.0,0.00017603,2]
[393278603,1762422640651,-3423.0,0.00017603,2]
[393278604,1762422640660,-1315.0,0.00017603,2]
[393278605,1762422640670,-1596.0,0.00017603,2]
[393278606,1762422640680,-820.0,0.00017603,2]
[393278607,1762422640691,-849.381,0.00017603,2]
[393278608,1762422640701,-1273.0,0.00017603,2]
[393278609,1762422640711,-559.0,0.00017603,2]
[393278610,1762422640730,-6475.0,0.00017603,2]
[393278611,1762422640739,-6658.0,0.00017603,2]
[393278612,1762422640749,-2141.0,0.00017603,2]
[393278613,1762422640759,-500.0,0.00017623,2]
[393278614,1762422640768,-599.0,0.00017623,2]
[393278615,1762422640777,-500.0,0.00017623,2]
[393278616,1762422640786,-3195.714,0.00017624,2]
[393278617,1762422640795,-176.193,0.00017624,2]
[393278618,1762422640804,-1131.0,0.00017639,2]
[393278619,1762422640814,-322.68190413,0.00017651,2]
[393278620,1762422640823,-864.47534972,0.00017672,2]
[393278621,1762422640832,-213.2608074,0.00017682,2]
[393278622,1762422640841,-1555.29425991,0.00017699,2]
[393278623,1762422640851,-10543.24405439,0.00017699,2]
[393278624,1762422640860,-2053.83,0.00017699,2]
[393278625,1762422640869,-500.0,0.00017699,2]
[393278626,1762422640878,-200.0,0.000177,6]
[393278627,1762422640887,-1131.0,0.00017704,2]
[393278628,1762422640896,-1131.0,0.00017726,2]
[393278629,1762422640906,-13091.7953311,0.00017731,2]
[393278630,1762422640915,-1425.0,0.00017737,2]
[393278631,1762422640924,-1425.0,0.00017737,2]
[393278632,1762422640933,-1425.0,0.00017744,2]
[393278633,1762422640942,-1425.0,0.00017755,2]
[393278634,1762422640951,-1425.0,0.00017757,2]
[393278635,1762422640961,-500.0,0.0001776,2]
[393278636,1762422640970,-599.0,0.0001776,2]
[393278637,1762422640979,-500.0,0.0001776,2]
[393278638,1762422640989,-1425.0,0.00017769,2]
[393278639,1762422640998,-1425.0,0.00017769,2]
[393278640,1762422641007,-1495.43285947,0.00017772,2]
[393278641,1762422641016,-1425.0,0.00017772,2]
[393278642,1762422641026,-1425.0,0.00017772,2]
[393278643,1762422641035,-1425.0,0.00017776,2]
[393278644,1762422641044,-1425.0,0.00017779,2]
[393278645,1762422641053,-1425.0,0.00017782,2]
[393278646,1762422641062,-1425.0,0.0001779,2]
[393278647,1762422641071,-1425.0,0.00017797,2]
[393278648,1762422641088,-17925.914755,0.000178,2]
[393278649,1762422641099,-293.68,0.000178,2]
[393278650,1762422641109,-1856.0,0.000178,2]
[393278651,1762422641118,-1000.0,0.000178,6]
[393278652,1762422641127,-1425.0,0.00017803,2]
[393278653,1762422641137,-1425.0,0.00017806,2]
[393278654,1762422641146,-1425.0,0.00017808,2]
[393278655,1762422641155,-1425.0,0.0001781,2]
[393278656,1762422641165,-1425.0,0.00017815,2]
[393278657,1762422641401,-355.25282514,0.00017816,2]
[393278658,1762422641410,-2000.0,0.00017816,2]
[393278659,1762422641420,-196.23949712,0.00017816,2]
[393278660,1762422641429,-2000.0,0.00017816,2]
[393278661,1762422641440,-1425.0,0.00017822,2]
[393278662,1762422641448,-1425.0,0.00017823,2]
[393278663,1762422641458,-1425.0,0.00017824,2]
[393278664,1762422641467,-1425.0,0.00017829,2]
[393278665,1762422641476,-72981.61630475,0.0001783,2]
[393278666,1762422641485,-1425.0,0.00017831,2]
[393278667,1762422641494,-1425.0,0.00017833,2]
[393278668,1762422641504,-1131.0,0.00017834,2]
[393278669,1762422641514,-1425.0,0.00017834,2]
[393278670,1762422641528,-1131.0,0.00017837,2]
[393278671,1762422641537,-1425.0,0.0001784,2]
[393278672,1762422641546,-1425.0,0.00017842,2]
[393278673,1762422641555,-200.0,0.00017855,2]
[393278674,1762422641570,-1425.0,0.00017855,2]
[393278675,1762422641580,-500.0,0.00017856,2]
[393278676,1762422641591,-200.0,0.00017856,2]
[393278677,1762422641601,-1425.0,0.00017864,2]
[393278678,1762422641610,-1425.0,0.00017865,2]
[393278679,1762422641619,-500.0,0.00017873,2]
[393278680,1762422641629,-500.0,0.00017873,2]
[393278681,1762422641638,-231.42602229,0.00017873,2]
[393278682,1762422641648,-500.0,0.00017873,2]
[393278683,1762422641658,-500.0,0.00017873,2]
[393278684,1762422641667,-500.0,0.00017873,2]
[393278685,1762422641677,-459.61733602,0.00017873,2]
[393278686,1762422641686,-500.0,0.00017873,2]
[393278687,1762422641696,-500.0,0.00017873,2]
[393278688,1762422641705,-634.78303561,0.00017873,2]
[393278689,1762422641715,-500.0,0.00017873,2]
[393278690,1762422641724,-500.0,0.00017873,2]
[393278691,1762422641734,-501.40523433,0.00017873,2]
[393278692,1762422641744,-500.0,0.00017873,2]
[393278693,1762422641753,-500.0,0.00017873,2]
[393278694,1762422641763,-1425.0,0.00017876,2]
[393278695,1762422641772,-1425.0,0.00017881,2]
[393278696,1762422641781,-1425.0,0.00017883,2]
[393278697,1762422641790,-1425.0,0.00017885,2]
[393278698,1762422641799,-1425.0,0.00017888,2]
[393278699,1762422641808,-1425.0,0.00017891,2]
[393278700,1762422641817,-1425.0,0.00017896,2]
[393278701,1762422641826,-1425.0,0.00017896,2]
[393278702,1762422641836,-500.0,0.00017897,2]
[393278703,1762422641846,-599.0,0.00017897,2]
[393278704,1762422641855,-500.0,0.00017897,2]
[393278705,1762422641864,-1425.0,0.00017897,2]
[393278706,1762422641873,-1529.05433757,0.000179,3]
[393278707,1762422641882,-3476.35684536,0.000179,2]
[393278708,1762422641892,-1425.0,0.000179,2]
[393278709,1762422641902,-1555.29425991,0.000179,2]
[393278710,1762422641912,-10543.24405439,0.000179,2]
[393278711,1762422641921,-1753.00930516,0.000179,2]
[393278712,1762422641931,-3688.53522249,0.000179,2]
[393278713,1762422641940,-500.0,0.000179,2]
[393278714,1762422641950,-500.0,0.000179,2]
[393278715,1762422641962,-500.0,0.000179,2]
[393278716,1762422641972,-500.0,0.000179,2]
[393278717,1762422641981,-500.0,0.000179,2]
[393278718,1762422641991,-500.0,0.000179,2]
[393278719,1762422642001,-500.0,0.000179,2]
[393278720,1762422642010,-2979.0,0.000179,2]
[393278721,1762422642022,-1425.0,0.00017901,2]
[393278722,1762422642032,-1425.0,0.00017902,2]
[393278723,1762422642041,-1417.85997736,0.0001791,2]
[393278724,1762422642053,-1425.0,0.00017911,2]
[393278725,1762422642062,-2000.0,0.00017916,2]
[393278726,1762422642071,-2000.0,0.00017916,2]
[393278727,1762422642081,-1799.86343044,0.00017916,2]
[393278728,1762422642090,-2104.44769538,0.00017916,2]
[393278729,1762422642100,-2000.0,0.00017916,2]
[393278730,1762422642109,-1869.54119436,0.00017916,2]
[393278731,1762422642119,-2000.0,0.00017916,2]
[393278732,1762422642129,-1425.0,0.00017919,2]
[393278733,1762422642138,-1425.0,0.00017922,2]
[393278734,1762422642147,-1425.0,0.00017935,2]
[393278735,1762422642157,-1425.0,0.00017941,2]
[393278736,1762422642167,-1425.0,0.00017943,2]
[393278737,1762422642176,-1425.0,0.00017953,2]
[393278738,1762422642185,-1425.0,0.00017956,2]
[393278739,1762422642195,-1425.0,0.00017965,2]
[393278740,1762422642203,-213.2608074,0.00017965,2]
[393278741,1762422642213,-329.0,0.00017973,2]
[393278742,1762422642222,-500.0,0.00017973,2]
[393278743,1762422642231,-500.0,0.00017973,2]
[393278744,1762422642240,-511.61246005,0.00017973,2]
[393278745,1762422642249,-500.0,0.00017973,2]
[393278746,1762422642258,-500.0,0.00017973,2]
[393278747,1762422642267,-506.28852507,0.00017973,2]
[393278748,1762422642277,-500.0,0.00017973,2]
[393278749,1762422642286,-419.7902568,0.00017973,2]
[393278750,1762422642295,-500.0,0.00017973,2]
[393278751,1762422642305,-500.0,0.00017973,2]
[393278752,1762422642314,-500.0,0.00017973,2]
[393278753,1762422642323,-516.45251666,0.00017973,2]
[393278754,1762422642332,-183.4285495,0.00017973,2]
[393278755,1762422642341,-500.0,0.00017973,2]
[393278756,1762422642350,-500.0,0.00017973,2]
[393278757,1762422642359,-500.0,0.00017973,2]
[393278758,1762422642368,-774.43,0.00017973,2]
[393278759,1762422642377,-1425.0,0.00017975,2]
[393278760,1762422642387,-1425.0,0.00017976,2]
[393278761,1762422642396,-1425.0,0.00017978,2]
[393278762,1762422642405,-1425.0,0.00017986,2]
[393278763,1762422642415,-540.74052707,0.00017989,2]
[393278765,1762422642424,-1425.0,0.0001799,2]
[393278766,1762422642434,-540.74052707,0.0001799,2]
[393278767,1762422642443,-540.74052707,0.0001799,2]
[393278768,1762422642451,-2053.83,0.00017998,2]
[393278769,1762422642461,-500.0,0.00017998,2]
[393278770,1762422642470,-150.0,0.00017999,2]
[393278773,1762422642480,-2053.83,0.00017999,2]
[393278774,1762422642489,-2053.83,0.00017999,2]
[393278775,1762422642498,-2053.83,0.00017999,2]
[393278776,1762422642507,-2053.83,0.00017999,2]
[393278777,1762422642519,-2053.83,0.00017999,2]
[393278778,1762422642528,-2053.83,0.00017999,2]
[393278779,1762422642538,-2053.83,0.00017999,2]
[393278780,1762422642548,-2053.83,0.00017999,2]
[393278781,1762422642558,-2053.83,0.00017999,2]
[393278782,1762422642568,-2053.83,0.00017999,2]
[393278783,1762422642577,-2053.83,0.00017999,2]
[393278784,1762422642587,-2053.83,0.00017999,2]
[393278785,1762422642597,-2053.83,0.00017999,2]
[393278786,1762422642606,-2053.83,0.00017999,2]
[393278787,1762422642615,-2053.83,0.00017999,2]
[393278788,1762422642625,-2053.83,0.00017999,2]
[393278789,1762422642634,-2053.83,0.00017999,2]
[393278790,1762422642644,-2053.97004684,0.00017999,2]
[393278791,1762422642653,-666.0,0.00017999,2]
[393278792,1762422642663,-500.0,0.00017999,2]
[393278793,1762422642672,-500.0,0.00017999,2]
[393278794,1762422642681,-500.0,0.00017999,2]
[393278795,1762422642691,-500.0,0.00017999,2]
[393278796,1762422642700,-408.1311233,0.00017999,2]
[393278797,1762422642712,-720.96,0.00017999,2]
[393278798,1762422642726,-720.96,0.00017999,2]
[393278799,1762422642738,-720.96,0.00017999,2]
[393278800,1762422642747,-720.96,0.00017999,2]